[Event "Titled Tuesday Blitz July 4 Late 2023"]
[White "Naroditsky, Daniel"]
[Black "Ghazarian, Kirk"]
[WhiteFideId "2026961"]
[BlackFideId "30908604"]
[WhiteElo "3139"]
[BlackElo "2749"]
[Result "1/2-1/2"]
[Round "4"]
[TimeControl "180+2"]
[Date "2023.07.04"]
[WhiteClock "0:00:02"]
[BlackClock "0:00:05"]
[Board "20"]

1. d4 {[%clk 0:02:59]}  d5 {[%clk 0:02:58]} 2. Nc3 {[%clk 0:02:59]}  Nf6 {[%clk 0:02:57]} 3. Bf4 {[%clk 0:02:58]}  c5 {[%clk 0:02:56]} 4. e4 {[%clk 0:02:58]}  Nxe4 {[%clk 0:02:56]} 5. Nxe4 {[%clk 0:02:58]}  dxe4 {[%clk 0:02:57]} 6. dxc5 {[%clk 0:02:59]}  Qa5+ {[%clk 0:02:55]} 7. c3 {[%clk 0:02:59]}  Qxc5 {[%clk 0:02:55]} 8. Qa4+ {[%clk 0:03:00]}  Nc6 {[%clk 0:02:54]} 9. Qxe4 {[%clk 0:03:00]}  g6 {[%clk 0:02:54]} 10. Nf3 {[%clk 0:03:01]}  Bg7 {[%clk 0:02:53]} 11. Rd1 {[%clk 0:03:00]}  O-O {[%clk 0:02:51]} 12. Be3 {[%clk 0:03:01]}  Qa5 {[%clk 0:02:48]} 13. Bc4 {[%clk 0:03:01]}  Bf5 {[%clk 0:02:35]} 14. Qh4 {[%clk 0:03:01]}  Rad8 {[%clk 0:02:33]} 15. O-O {[%clk 0:03:01]}  h5 {[%clk 0:02:30]} 16. h3 {[%clk 0:02:59]}  Rxd1 {[%clk 0:02:27]} 17. Rxd1 {[%clk 0:03:00]}  Rd8 {[%clk 0:02:22]} 18. Re1 {[%clk 0:03:01]}  Ne5 {[%clk 0:02:19]} 19. Nxe5 {[%clk 0:02:52]}  Qxe5 {[%clk 0:02:16]} 20. Bd2 {[%clk 0:02:25]}  Qd6 {[%clk 0:02:12]} 21. Bg5 {[%clk 0:02:18]}  Bf6 {[%clk 0:02:13]} 22. Bxf6 {[%clk 0:02:12]}  exf6 {[%clk 0:02:12]} 23. Bb3 {[%clk 0:02:07]}  Kg7 {[%clk 0:02:04]} 24. Qa4 {[%clk 0:01:45]}  a6 {[%clk 0:01:58]} 25. Qa5 {[%clk 0:01:42]}  Rd7 {[%clk 0:01:47]} 26. Rd1 {[%clk 0:01:27]}  Qe7 {[%clk 0:01:43]} 27. Rxd7 {[%clk 0:01:24]}  Bxd7 {[%clk 0:01:31]} 28. Qd5 {[%clk 0:00:51]}  Bc6 {[%clk 0:01:26]} 29. Qd2 {[%clk 0:00:45]}  h4 {[%clk 0:01:13]} 30. f3 {[%clk 0:00:41]}  g5 {[%clk 0:01:11]} 31. Bc2 {[%clk 0:00:41]}  Qc5+ {[%clk 0:01:09]} 32. Qd4 {[%clk 0:00:38]}  Qe5 {[%clk 0:01:05]} 33. Kf2 {[%clk 0:00:29]}  Qg3+ {[%clk 0:01:04]} 34. Kf1 {[%clk 0:00:30]}  Qh2 {[%clk 0:00:59]} 35. Qd3 {[%clk 0:00:25]}  Qh1+ {[%clk 0:00:50]} 36. Kf2 {[%clk 0:00:25]}  Qc1 {[%clk 0:00:51]} 37. b3 {[%clk 0:00:19]}  Kf8 {[%clk 0:00:42]} 38. Qd8+ {[%clk 0:00:16]}  Kg7 {[%clk 0:00:42]} 39. Qd3 {[%clk 0:00:16]}  Kf8 {[%clk 0:00:39]} 40. c4 {[%clk 0:00:17]}  Qa1 {[%clk 0:00:33]} 41. a4 {[%clk 0:00:12]}  Qc1 {[%clk 0:00:33]} 42. Qd8+ {[%clk 0:00:12]}  Kg7 {[%clk 0:00:32]} 43. Qd3 {[%clk 0:00:13]}  Kf8 {[%clk 0:00:30]} 44. b4 {[%clk 0:00:11]}  Bd7 {[%clk 0:00:10]} 45. b5 {[%clk 0:00:09]}  axb5 {[%clk 0:00:07]} 46. cxb5 {[%clk 0:00:08]}  b6 {[%clk 0:00:05]} 47. Bb3 {[%clk 0:00:07]}  Qb2+ {[%clk 0:00:04]} 48. Kg1 {[%clk 0:00:07]}  Qc1+ {[%clk 0:00:05]} 49. Qd1 {[%clk 0:00:04]}  Qc5+ {[%clk 0:00:04]} 50. Kh1 {[%clk 0:00:03]}  Be6 {[%clk 0:00:04]} 51. Bxe6 {[%clk 0:00:03]}  fxe6 {[%clk 0:00:05]} 52. Qd8+ {[%clk 0:00:04]}  Kg7 {[%clk 0:00:04]} 53. Qd7+ {[%clk 0:00:04]}  Kg6 {[%clk 0:00:04]} 54. Qxe6 {[%clk 0:00:03]}  Qc1+ {[%clk 0:00:05]} 55. Kh2 {[%clk 0:00:04]}  Qf4+ {[%clk 0:00:06]} 56. Kg1 {[%clk 0:00:04]}  Qc1+ {[%clk 0:00:06]} 57. Kf2 {[%clk 0:00:05]}  Qc2+ {[%clk 0:00:07]} 58. Kf1 {[%clk 0:00:04]}  Qd1+ {[%clk 0:00:05]} 59. Qe1 {[%clk 0:00:03]}  Qxa4 {[%clk 0:00:06]} 60. Qe8+ {[%clk 0:00:02]}  Kg7 {[%clk 0:00:05]} 61. Qd7+ {[%clk 0:00:02]}  Kg6 {[%clk 0:00:05]} 62. Qe8+ {[%clk 0:00:03]}  Kg7 {[%clk 0:00:05]} 63. Qe7+ {[%clk 0:00:03]}  Kg6 {[%clk 0:00:06]} 64. Qd7 {[%clk 0:00:02]}  Qa1+ {[%clk 0:00:05]} 65. Kf2 {[%clk 0:00:03]}  Qb2+ {[%clk 0:00:05]} 66. Kg1 {[%clk 0:00:04]}  Qc1+ {[%clk 0:00:05]} 67. Kf2 {[%clk 0:00:05]}  Qc2+ {[%clk 0:00:05]} 68. Kf1 {[%clk 0:00:05]}  Qc1+ {[%clk 0:00:05]} 69. Ke2 {[%clk 0:00:04]}  Qc2+ {[%clk 0:00:05]} 70. Ke3 {[%clk 0:00:03]}  Qc1+ {[%clk 0:00:04]} 71. Ke2 {[%clk 0:00:02]}  Qc2+ {[%clk 0:00:05]} 72. Ke3 {[%clk 0:00:03]}  Qc1+ {[%clk 0:00:05]} 73. Ke2 {[%clk 0:00:02]} 1/2-1/2


[Site "https://www.chess.com"]

[Event "Titled Tuesday Blitz July 4 Late 2023"]
[White "Firouzja, Alireza"]
[Black "Mahdavi, Reza"]
[WhiteFideId "12573981"]
[BlackFideId "12595926"]
[WhiteElo "3099"]
[BlackElo "2746"]
[Result "1-0"]
[Round "4"]
[TimeControl "180+2"]
[Date "2023.07.04"]
[WhiteClock "0:00:04"]
[BlackClock "0:00:01"]
[Board "21"]

1. d4 {[%clk 0:02:59]}  Nf6 {[%clk 0:03:00]} 2. Bg5 {[%clk 0:02:59]}  g6 {[%clk 0:02:56]} 3. c4 {[%clk 0:02:52]}  Bg7 {[%clk 0:02:54]} 4. Nc3 {[%clk 0:02:52]}  O-O {[%clk 0:02:43]} 5. e4 {[%clk 0:02:51]}  d6 {[%clk 0:02:44]} 6. Be2 {[%clk 0:02:51]}  c5 {[%clk 0:02:21]} 7. d5 {[%clk 0:02:49]}  h6 {[%clk 0:02:05]} 8. Bh4 {[%clk 0:02:43]}  b5 {[%clk 0:02:04]} 9. cxb5 {[%clk 0:02:40]}  Qa5 {[%clk 0:02:04]} 10. f3 {[%clk 0:01:46]}  a6 {[%clk 0:01:59]} 11. a4 {[%clk 0:01:37]}  axb5 {[%clk 0:01:58]} 12. Bc4 {[%clk 0:01:37]}  bxc4 {[%clk 0:01:57]} 13. Ne2 {[%clk 0:01:29]}  Na6 {[%clk 0:01:53]} 14. O-O {[%clk 0:01:29]}  Nb4 {[%clk 0:01:54]} 15. Qd2 {[%clk 0:01:28]}  Bd7 {[%clk 0:01:49]} 16. Bxf6 {[%clk 0:01:06]}  Bxf6 {[%clk 0:01:49]} 17. Qxh6 {[%clk 0:01:06]}  Nd3 {[%clk 0:01:47]} 18. f4 {[%clk 0:01:07]}  Bg4 {[%clk 0:01:33]} 19. f5 {[%clk 0:00:53]}  Bg7 {[%clk 0:01:31]} 20. Qg5 {[%clk 0:00:47]}  Bxe2 {[%clk 0:01:31]} 21. Nxe2 {[%clk 0:00:47]}  Rfb8 {[%clk 0:01:23]} 22. fxg6 {[%clk 0:00:43]}  f6 {[%clk 0:01:23]} 23. Qg4 {[%clk 0:00:24]}  Ne5 {[%clk 0:01:11]} 24. Qh5 {[%clk 0:00:16]}  Rxb2 {[%clk 0:01:08]} 25. Nf4 {[%clk 0:00:14]}  Qd2 {[%clk 0:01:01]} 26. Rad1 {[%clk 0:00:11]}  Qe3+ {[%clk 0:00:50]} 27. Kh1 {[%clk 0:00:11]}  Qxe4 {[%clk 0:00:51]} 28. Rde1 {[%clk 0:00:08]}  Qc2 {[%clk 0:00:43]} 29. Re2 {[%clk 0:00:08]}  Rb1 {[%clk 0:00:38]} 30. Ree1 {[%clk 0:00:08]}  Rxe1 {[%clk 0:00:33]} 31. Rxe1 {[%clk 0:00:09]}  Qd2 {[%clk 0:00:21]} 32. Rf1 {[%clk 0:00:09]}  Kf8 {[%clk 0:00:11]} 33. Ne6+ {[%clk 0:00:07]}  Ke8 {[%clk 0:00:12]} 34. Nxg7+ {[%clk 0:00:08]}  Kd7 {[%clk 0:00:13]} 35. Qf5+ {[%clk 0:00:07]}  Kc7 {[%clk 0:00:13]} 36. Ne6+ {[%clk 0:00:08]}  Kb6 {[%clk 0:00:10]} 37. Qb1+ {[%clk 0:00:03]}  Ka7 {[%clk 0:00:11]} 38. g7 {[%clk 0:00:03]}  Nd3 {[%clk 0:00:09]} 39. a5 {[%clk 0:00:03]}  Qb4 {[%clk 0:00:02]} 40. Qxb4 {[%clk 0:00:03]}  cxb4 {[%clk 0:00:03]} 41. Nf8 {[%clk 0:00:04]}  c3 {[%clk 0:00:04]} 42. g8=Q {[%clk 0:00:04]}  c2 {[%clk 0:00:01]} 43. Qg6 {[%clk 0:00:04]} 1-0


[Site "https://www.chess.com"]

[Event "Titled Tuesday Blitz July 4 Late 2023"]
[White "Sargsyan, Shant"]
[Black "Ozer, Omer Faruk"]
[WhiteFideId "13306766"]
[BlackFideId "6354564"]
[WhiteElo "3005"]
[BlackElo "2738"]
[Result "0-1"]
[Round "4"]
[TimeControl "180+2"]
[Date "2023.07.04"]
[WhiteClock "0:00:00"]
[BlackClock "0:00:06"]
[Board "22"]

1. c4 {[%clk 0:03:00]}  e5 {[%clk 0:02:58]} 2. g3 {[%clk 0:03:01]}  h5 {[%clk 0:02:57]} 3. Nc3 {[%clk 0:02:53]}  h4 {[%clk 0:02:56]} 4. Bg2 {[%clk 0:02:54]}  Nc6 {[%clk 0:02:55]} 5. d3 {[%clk 0:02:54]}  Bc5 {[%clk 0:02:55]} 6. e3 {[%clk 0:02:53]}  d6 {[%clk 0:02:52]} 7. a3 {[%clk 0:02:53]}  a6 {[%clk 0:02:52]} 8. b4 {[%clk 0:02:52]}  Ba7 {[%clk 0:02:52]} 9. Rb1 {[%clk 0:02:51]}  Nge7 {[%clk 0:02:50]} 10. a4 {[%clk 0:02:51]}  a5 {[%clk 0:02:10]} 11. b5 {[%clk 0:02:50]}  Nb4 {[%clk 0:02:10]} 12. Nge2 {[%clk 0:02:42]}  Bf5 {[%clk 0:02:07]} 13. e4 {[%clk 0:02:40]}  Bg4 {[%clk 0:02:02]} 14. h3 {[%clk 0:02:29]}  Be6 {[%clk 0:02:01]} 15. g4 {[%clk 0:02:24]}  Ng6 {[%clk 0:01:58]} 16. Be3 {[%clk 0:02:21]}  Bc5 {[%clk 0:01:51]} 17. Qd2 {[%clk 0:02:20]}  c6 {[%clk 0:01:48]} 18. O-O {[%clk 0:02:17]}  O-O {[%clk 0:01:42]} 19. Kh2 {[%clk 0:02:16]}  Qb6 {[%clk 0:01:35]} 20. Nc1 {[%clk 0:01:56]}  Rad8 {[%clk 0:01:31]} 21. Nb3 {[%clk 0:01:56]}  Qa7 {[%clk 0:01:24]} 22. Ne2 {[%clk 0:01:49]}  cxb5 {[%clk 0:01:20]} 23. axb5 {[%clk 0:01:48]}  b6 {[%clk 0:01:20]} 24. f4 {[%clk 0:01:43]}  exf4 {[%clk 0:01:20]} 25. Nxf4 {[%clk 0:01:42]}  Nxf4 {[%clk 0:01:18]} 26. Bxf4 {[%clk 0:01:41]}  a4 {[%clk 0:01:00]} 27. Nc1 {[%clk 0:01:40]}  Qa5 {[%clk 0:00:54]} 28. Bg5 {[%clk 0:01:38]}  f6 {[%clk 0:00:53]} 29. Bxh4 {[%clk 0:01:38]}  a3 {[%clk 0:00:49]} 30. g5 {[%clk 0:01:07]}  fxg5 {[%clk 0:00:43]} 31. Nb3 {[%clk 0:00:47]}  Qa4 {[%clk 0:00:38]} 32. Nxc5 {[%clk 0:00:47]}  dxc5 {[%clk 0:00:37]} 33. Bxg5 {[%clk 0:00:47]}  a2 {[%clk 0:00:31]} 34. Ra1 {[%clk 0:00:44]}  Rxf1 {[%clk 0:00:28]} 35. Bxf1 {[%clk 0:00:44]}  Rf8 {[%clk 0:00:22]} 36. Qb2 {[%clk 0:00:21]}  Ra8 {[%clk 0:00:11]} 37. Be2 {[%clk 0:00:09]}  Qc2 {[%clk 0:00:11]} 38. Bc1 {[%clk 0:00:07]}  Qxb2 {[%clk 0:00:08]} 39. Bxb2 {[%clk 0:00:08]}  Nc2 {[%clk 0:00:09]} 40. Rc1 {[%clk 0:00:07]}  a1=Q {[%clk 0:00:08]} 41. Bxa1 {[%clk 0:00:08]}  Nxa1 {[%clk 0:00:09]} 42. Kg3 {[%clk 0:00:06]}  Nb3 {[%clk 0:00:09]} 43. Rg1 {[%clk 0:00:06]}  Nd4 {[%clk 0:00:10]} 44. Bd1 {[%clk 0:00:06]}  Ra3 {[%clk 0:00:09]} 45. Kf4 {[%clk 0:00:05]}  Rxd3 {[%clk 0:00:10]} 46. Ke5 {[%clk 0:00:05]}  Bxc4 {[%clk 0:00:10]} 47. Bg4 {[%clk 0:00:04]}  Nxb5 {[%clk 0:00:09]} 48. Ra1 {[%clk 0:00:00]}  Nd6 {[%clk 0:00:06]} 0-1


[Site "https://www.chess.com"]

[Event "Titled Tuesday Blitz July 4 Late 2023"]
[White "Lizak, Peter"]
[Black "Paravyan, David"]
[WhiteFideId "731595"]
[BlackFideId "4194985"]
[WhiteElo "2677"]
[BlackElo "2975"]
[Result "0-1"]
[Round "4"]
[TimeControl "180+2"]
[Date "2023.07.04"]
[WhiteClock "0:00:06"]
[BlackClock "0:00:35"]
[Board "23"]

1. d4 {[%clk 0:03:00]}  Nf6 {[%clk 0:02:59]} 2. Nc3 {[%clk 0:03:01]}  d5 {[%clk 0:02:58]} 3. Bf4 {[%clk 0:03:01]}  g6 {[%clk 0:02:58]} 4. e3 {[%clk 0:03:01]}  Bg7 {[%clk 0:02:59]} 5. h4 {[%clk 0:03:02]}  h5 {[%clk 0:02:59]} 6. Nf3 {[%clk 0:03:02]}  O-O {[%clk 0:02:59]} 7. Ne5 {[%clk 0:03:02]}  c5 {[%clk 0:03:00]} 8. Qd2 {[%clk 0:03:01]}  cxd4 {[%clk 0:02:58]} 9. exd4 {[%clk 0:03:01]}  Nc6 {[%clk 0:02:59]} 10. f3 {[%clk 0:03:00]}  Bf5 {[%clk 0:02:59]} 11. Nxc6 {[%clk 0:02:57]}  bxc6 {[%clk 0:03:00]} 12. Bd3 {[%clk 0:02:56]}  Bxd3 {[%clk 0:02:59]} 13. Qxd3 {[%clk 0:02:56]}  c5 {[%clk 0:02:41]} 14. Be5 {[%clk 0:02:49]}  cxd4 {[%clk 0:02:39]} 15. Qxd4 {[%clk 0:02:48]}  Qb6 {[%clk 0:02:26]} 16. Qxb6 {[%clk 0:02:44]}  axb6 {[%clk 0:02:27]} 17. O-O-O {[%clk 0:01:55]}  e6 {[%clk 0:02:27]} 18. Kb1 {[%clk 0:01:53]}  Ne8 {[%clk 0:02:20]} 19. Bxg7 {[%clk 0:01:50]}  Kxg7 {[%clk 0:02:20]} 20. g4 {[%clk 0:01:49]}  Nd6 {[%clk 0:02:19]} 21. Rdg1 {[%clk 0:01:32]}  hxg4 {[%clk 0:02:10]} 22. fxg4 {[%clk 0:01:23]}  b5 {[%clk 0:02:11]} 23. h5 {[%clk 0:01:19]}  b4 {[%clk 0:02:09]} 24. Ne2 {[%clk 0:01:19]}  Ne4 {[%clk 0:01:55]} 25. hxg6 {[%clk 0:01:10]}  fxg6 {[%clk 0:01:56]} 26. Nd4 {[%clk 0:01:09]}  Ra6 {[%clk 0:01:50]} 27. Rh2 {[%clk 0:00:47]}  Rfa8 {[%clk 0:01:46]} 28. Rf1 {[%clk 0:00:34]}  e5 {[%clk 0:01:38]} 29. Nb3 {[%clk 0:00:26]}  Rxa2 {[%clk 0:01:36]} 30. Rd1 {[%clk 0:00:20]}  d4 {[%clk 0:00:35]} 31. Re2 {[%clk 0:00:17]}  Nc5 {[%clk 0:00:36]} 32. Rxe5 {[%clk 0:00:15]}  Na4 {[%clk 0:00:36]} 33. Kxa2 {[%clk 0:00:06]}  Nc3# {[%clk 0:00:35]} 0-1


[Site "https://www.chess.com"]

[Event "Titled Tuesday Blitz July 4 Late 2023"]
[White "Indjic, Aleksandar"]
[Black "Rostomyan, Mikayel"]
[WhiteFideId "911925"]
[BlackFideId "13313754"]
[WhiteElo "2965"]
[BlackElo "2635"]
[Result "1-0"]
[Round "4"]
[TimeControl "180+2"]
[Date "2023.07.04"]
[WhiteClock "0:00:14"]
[BlackClock "0:00:03"]
[Board "24"]

1. d4 {[%clk 0:03:00]}  d5 {[%clk 0:02:57]} 2. c4 {[%clk 0:03:01]}  e5 {[%clk 0:02:57]} 3. dxe5 {[%clk 0:03:00]}  Ne7 {[%clk 0:02:58]} 4. e3 {[%clk 0:02:49]}  Nbc6 {[%clk 0:02:57]} 5. f4 {[%clk 0:02:48]}  Be6 {[%clk 0:02:54]} 6. a3 {[%clk 0:02:39]}  dxc4 {[%clk 0:02:53]} 7. Qc2 {[%clk 0:02:38]}  Na5 {[%clk 0:02:34]} 8. Nd2 {[%clk 0:02:37]}  Nb3 {[%clk 0:02:33]} 9. Nxb3 {[%clk 0:02:27]}  cxb3 {[%clk 0:02:34]} 10. Qf2 {[%clk 0:02:09]}  Qd5 {[%clk 0:02:30]} 11. Nf3 {[%clk 0:02:05]}  O-O-O {[%clk 0:02:26]} 12. Be2 {[%clk 0:02:04]}  f6 {[%clk 0:02:14]} 13. exf6 {[%clk 0:02:03]}  gxf6 {[%clk 0:02:15]} 14. Nd4 {[%clk 0:02:01]}  Bf7 {[%clk 0:01:54]} 15. Bf3 {[%clk 0:01:57]}  Qa5+ {[%clk 0:01:53]} 16. Bd2 {[%clk 0:01:56]}  Qb6 {[%clk 0:01:53]} 17. Bc3 {[%clk 0:01:48]}  Nd5 {[%clk 0:01:52]} 18. O-O {[%clk 0:01:00]}  Nxc3 {[%clk 0:01:42]} 19. bxc3 {[%clk 0:01:00]}  b2 {[%clk 0:01:43]} 20. Rab1 {[%clk 0:01:00]}  Bxa3 {[%clk 0:01:43]} 21. Qc2 {[%clk 0:00:57]}  Ba2 {[%clk 0:01:37]} 22. Qa4 {[%clk 0:00:56]}  Bxb1 {[%clk 0:01:34]} 23. Rxb1 {[%clk 0:00:57]}  Bc5 {[%clk 0:01:31]} 24. Qa2 {[%clk 0:00:51]}  Bxd4 {[%clk 0:01:12]} 25. cxd4 {[%clk 0:00:48]}  Qb4 {[%clk 0:00:33]} 26. h3 {[%clk 0:00:25]}  Qd2 {[%clk 0:00:30]} 27. Qb3 {[%clk 0:00:20]}  Qc1+ {[%clk 0:00:28]} 28. Kh2 {[%clk 0:00:20]}  Qxb1 {[%clk 0:00:21]} 29. Bxb7+ {[%clk 0:00:20]}  Kd7 {[%clk 0:00:20]} 30. Qf7+ {[%clk 0:00:20]}  Kd6 {[%clk 0:00:18]} 31. Qxf6+ {[%clk 0:00:20]}  Kd7 {[%clk 0:00:18]} 32. Bc6+ {[%clk 0:00:14]}  Kc8 {[%clk 0:00:15]} 33. Qe6+ {[%clk 0:00:15]}  Rd7 {[%clk 0:00:13]} 34. Bxd7+ {[%clk 0:00:14]}  Kd8 {[%clk 0:00:03]} 35. Bc6 {[%clk 0:00:14]} 1-0


[Site "https://www.chess.com"]

[Event "Titled Tuesday Blitz July 4 Late 2023"]
[White "Xiong, Jeffery"]
[Black "Fantastic_Power"]
[WhiteFideId "2047640"]
[WhiteElo "2939"]
[BlackElo "2676"]
[Result "1-0"]
[Round "4"]
[TimeControl "180+2"]
[Date "2023.07.04"]
[WhiteClock "0:01:09"]
[BlackClock "0:00:00"]
[Board "25"]

1. e4 {[%clk 0:03:00]}  c5 {[%clk 0:02:59]} 2. Nf3 {[%clk 0:03:01]}  e6 {[%clk 0:02:59]} 3. c3 {[%clk 0:03:01]}  d5 {[%clk 0:02:58]} 4. e5 {[%clk 0:03:01]}  Nc6 {[%clk 0:02:57]} 5. d4 {[%clk 0:03:01]}  Qa5 {[%clk 0:02:58]} 6. a3 {[%clk 0:02:50]}  Nxd4 {[%clk 0:02:57]} 7. Nxd4 {[%clk 0:02:47]}  cxd4 {[%clk 0:02:57]} 8. b4 {[%clk 0:02:48]}  Qb6 {[%clk 0:02:55]} 9. cxd4 {[%clk 0:02:45]}  a5 {[%clk 0:02:56]} 10. b5 {[%clk 0:02:44]}  Bd7 {[%clk 0:02:56]} 11. Nc3 {[%clk 0:02:39]}  Nh6 {[%clk 0:02:46]} 12. Na4 {[%clk 0:02:36]}  Qd8 {[%clk 0:02:43]} 13. Bxh6 {[%clk 0:02:36]}  gxh6 {[%clk 0:02:43]} 14. Be2 {[%clk 0:02:32]}  b6 {[%clk 0:02:33]} 15. O-O {[%clk 0:02:32]}  Bg7 {[%clk 0:02:33]} 16. f4 {[%clk 0:02:31]}  O-O {[%clk 0:02:31]} 17. Bd3 {[%clk 0:02:30]}  Rb8 {[%clk 0:02:11]} 18. Rc1 {[%clk 0:02:28]}  f5 {[%clk 0:02:04]} 19. g4 {[%clk 0:02:24]}  Qe8 {[%clk 0:01:29]} 20. gxf5 {[%clk 0:02:22]}  exf5 {[%clk 0:01:29]} 21. Nc3 {[%clk 0:02:20]}  Be6 {[%clk 0:01:27]} 22. Kh1 {[%clk 0:02:17]}  Kh8 {[%clk 0:01:28]} 23. Na4 {[%clk 0:02:02]}  Qe7 {[%clk 0:01:24]} 24. Rc6 {[%clk 0:01:59]}  Bd7 {[%clk 0:01:02]} 25. Rd6 {[%clk 0:01:59]}  Rg8 {[%clk 0:00:51]} 26. Nxb6 {[%clk 0:01:59]}  Be6 {[%clk 0:00:51]} 27. Qh5 {[%clk 0:01:56]}  Bf8 {[%clk 0:00:51]} 28. Rc6 {[%clk 0:01:39]}  Qg7 {[%clk 0:00:46]} 29. Qf3 {[%clk 0:01:38]}  Qf7 {[%clk 0:00:37]} 30. a4 {[%clk 0:01:35]}  Bb4 {[%clk 0:00:31]} 31. Rfc1 {[%clk 0:01:25]}  Rg7 {[%clk 0:00:25]} 32. Nc8 {[%clk 0:01:22]}  Bd7 {[%clk 0:00:11]} 33. Nd6 {[%clk 0:01:21]}  Qg8 {[%clk 0:00:10]} 34. Ra6 {[%clk 0:01:17]}  Bd2 {[%clk 0:00:06]} 35. Rd1 {[%clk 0:01:16]}  Be6 {[%clk 0:00:05]} 36. Bxf5 {[%clk 0:01:13]}  Bb4 {[%clk 0:00:03]} 37. Bxe6 {[%clk 0:01:09]}  Qxe6 {[%clk 0:00:04]} 38. f5 {[%clk 0:01:09]}  Qg8 {[%clk 0:00:04]} 39. f6 {[%clk 0:01:08]}  Rg6 {[%clk 0:00:04]} 40. f7 {[%clk 0:01:09]}  Qg7 {[%clk 0:00:00]} 41. Ne8 {[%clk 0:01:09]} 1-0


[Site "https://www.chess.com"]

[Event "Titled Tuesday Blitz July 4 Late 2023"]
[White "Sanal, Vahap"]
[Black "Di Berardino, Diego Rafael"]
[WhiteFideId "6300545"]
[BlackFideId "2105446"]
[WhiteElo "2890"]
[BlackElo "2627"]
[Result "1-0"]
[Round "4"]
[TimeControl "180+2"]
[Date "2023.07.04"]
[WhiteClock "0:00:53"]
[BlackClock "0:00:01"]
[Board "26"]

1. d4 {[%clk 0:02:52]}  Nf6 {[%clk 0:02:58]} 2. c4 {[%clk 0:02:52]}  e6 {[%clk 0:02:54]} 3. Nf3 {[%clk 0:02:50]}  Bb4+ {[%clk 0:02:53]} 4. Nbd2 {[%clk 0:02:48]}  O-O {[%clk 0:02:52]} 5. a3 {[%clk 0:02:48]}  Be7 {[%clk 0:02:52]} 6. g3 {[%clk 0:02:45]}  b6 {[%clk 0:02:49]} 7. Bg2 {[%clk 0:02:45]}  Bb7 {[%clk 0:02:49]} 8. O-O {[%clk 0:02:46]}  d5 {[%clk 0:02:46]} 9. cxd5 {[%clk 0:02:44]}  exd5 {[%clk 0:02:42]} 10. Nb1 {[%clk 0:02:44]}  c5 {[%clk 0:02:39]} 11. Nc3 {[%clk 0:02:44]}  Na6 {[%clk 0:02:35]} 12. Bg5 {[%clk 0:02:31]}  Nc7 {[%clk 0:02:33]} 13. Rc1 {[%clk 0:02:26]}  Ne6 {[%clk 0:02:30]} 14. Bxf6 {[%clk 0:02:18]}  Bxf6 {[%clk 0:02:29]} 15. e3 {[%clk 0:02:19]}  Rc8 {[%clk 0:02:14]} 16. h4 {[%clk 0:02:12]}  cxd4 {[%clk 0:02:09]} 17. exd4 {[%clk 0:02:11]}  Rc4 {[%clk 0:01:58]} 18. b3 {[%clk 0:02:08]}  Rc8 {[%clk 0:01:53]} 19. Re1 {[%clk 0:02:08]}  Qd6 {[%clk 0:01:35]} 20. b4 {[%clk 0:02:05]}  Rc4 {[%clk 0:01:29]} 21. Bf1 {[%clk 0:02:01]}  Rcc8 {[%clk 0:01:20]} 22. Nb5 {[%clk 0:02:01]}  Rxc1 {[%clk 0:01:09]} 23. Qxc1 {[%clk 0:02:00]}  Qb8 {[%clk 0:01:03]} 24. Bh3 {[%clk 0:01:57]}  a6 {[%clk 0:00:54]} 25. Nc3 {[%clk 0:01:56]}  Nxd4 {[%clk 0:00:48]} 26. Nxd4 {[%clk 0:01:56]}  Bxd4 {[%clk 0:00:48]} 27. Ne2 {[%clk 0:01:52]}  Bf6 {[%clk 0:00:40]} 28. Nf4 {[%clk 0:01:51]}  g6 {[%clk 0:00:32]} 29. Bg2 {[%clk 0:01:45]}  Rd8 {[%clk 0:00:32]} 30. Nd3 {[%clk 0:01:42]}  Qd6 {[%clk 0:00:29]} 31. Qd2 {[%clk 0:01:40]}  Bc6 {[%clk 0:00:27]} 32. h5 {[%clk 0:01:37]}  Bb5 {[%clk 0:00:26]} 33. Nf4 {[%clk 0:01:37]}  Bg5 {[%clk 0:00:23]} 34. hxg6 {[%clk 0:01:35]}  hxg6 {[%clk 0:00:23]} 35. Qd4 {[%clk 0:01:33]}  Bxf4 {[%clk 0:00:22]} 36. gxf4 {[%clk 0:01:34]}  Bc4 {[%clk 0:00:20]} 37. f5 {[%clk 0:01:32]}  gxf5 {[%clk 0:00:18]} 38. Re3 {[%clk 0:01:32]}  f4 {[%clk 0:00:08]} 39. Re5 {[%clk 0:01:29]}  f6 {[%clk 0:00:07]} 40. Rf5 {[%clk 0:01:29]}  Re8 {[%clk 0:00:03]} 41. Rxf6 {[%clk 0:01:05]}  Re1+ {[%clk 0:00:03]} 42. Kh2 {[%clk 0:01:05]}  Qe7 {[%clk 0:00:03]} 43. Rg6+ {[%clk 0:00:55]}  Kh7 {[%clk 0:00:03]} 44. Rg4 {[%clk 0:00:55]}  Qf7 {[%clk 0:00:01]} 45. Rh4+ {[%clk 0:00:55]}  Kg6 {[%clk 0:00:01]} 46. Qxb6+ {[%clk 0:00:55]}  Kg5 {[%clk 0:00:01]} 47. Qh6+ {[%clk 0:00:55]}  Kf5 {[%clk 0:00:01]} 48. Rxf4+ {[%clk 0:00:53]} 1-0


[Site "https://www.chess.com"]

[Event "Titled Tuesday Blitz July 4 Late 2023"]
[White "Pranav, V"]
[Black "Ozates, Tuna"]
[WhiteFideId "25060783"]
[BlackFideId "6354521"]
[WhiteElo "2987"]
[BlackElo "2565"]
[Result "1-0"]
[Round "4"]
[TimeControl "180+2"]
[Date "2023.07.04"]
[WhiteClock "0:00:49"]
[BlackClock "0:00:01"]
[Board "29"]

1. e4 {[%clk 0:03:00]}  c5 {[%clk 0:02:51]} 2. Nf3 {[%clk 0:03:00]}  Nc6 {[%clk 0:02:51]} 3. Bb5 {[%clk 0:02:59]}  g6 {[%clk 0:02:51]} 4. O-O {[%clk 0:02:56]}  Bg7 {[%clk 0:02:49]} 5. c3 {[%clk 0:02:55]}  Nf6 {[%clk 0:02:47]} 6. Re1 {[%clk 0:02:55]}  O-O {[%clk 0:02:46]} 7. d4 {[%clk 0:02:54]}  d5 {[%clk 0:02:46]} 8. e5 {[%clk 0:02:54]}  Ne4 {[%clk 0:02:46]} 9. Be3 {[%clk 0:02:54]}  cxd4 {[%clk 0:02:41]} 10. cxd4 {[%clk 0:02:52]}  f6 {[%clk 0:02:41]} 11. exf6 {[%clk 0:02:47]}  exf6 {[%clk 0:02:40]} 12. Nc3 {[%clk 0:02:46]}  Ne7 {[%clk 0:02:33]} 13. Rc1 {[%clk 0:02:38]}  a6 {[%clk 0:02:29]} 14. Ba4 {[%clk 0:02:34]}  h6 {[%clk 0:02:25]} 15. Bd2 {[%clk 0:02:08]}  f5 {[%clk 0:02:20]} 16. Bf4 {[%clk 0:02:07]}  Bd7 {[%clk 0:01:59]} 17. Bb3 {[%clk 0:02:03]}  Bc6 {[%clk 0:01:59]} 18. Ne5 {[%clk 0:02:03]}  g5 {[%clk 0:01:55]} 19. Nxe4 {[%clk 0:01:34]}  fxe4 {[%clk 0:01:55]} 20. Bg3 {[%clk 0:01:34]}  Kh7 {[%clk 0:01:46]} 21. f3 {[%clk 0:01:14]}  Nf5 {[%clk 0:01:35]} 22. Bf2 {[%clk 0:01:07]}  Bxe5 {[%clk 0:00:35]} 23. dxe5 {[%clk 0:01:06]}  exf3 {[%clk 0:00:23]} 24. Qxf3 {[%clk 0:01:04]}  d4 {[%clk 0:00:23]} 25. Rxc6 {[%clk 0:00:54]}  bxc6 {[%clk 0:00:24]} 26. Bc2 {[%clk 0:00:55]}  Ra7 {[%clk 0:00:09]} 27. Bxf5+ {[%clk 0:00:54]}  Kg7 {[%clk 0:00:08]} 28. e6 {[%clk 0:00:52]}  Qf6 {[%clk 0:00:06]} 29. g4 {[%clk 0:00:52]}  c5 {[%clk 0:00:05]} 30. Qd5 {[%clk 0:00:50]}  Rc7 {[%clk 0:00:03]} 31. Bg3 {[%clk 0:00:49]}  Kg8 {[%clk 0:00:01]} 1-0


[Site "https://www.chess.com"]